[Event "Titled Tuesday Blitz January 31 Late 2023"]
[White "Kraus, Tomas"]
[Black "Reprintsev, Alexander"]
[WhiteFideId "331708"]
[BlackFideId "14100541"]
[WhiteElo "2473"]
[BlackElo "2253"]
[Result "1-0"]
[Round "06"]
[TimeControl "180+2"]
[Date "2023.01.31"]
[WhiteClock "0:00:08"]
[BlackClock "0:00:02"]

1. e4 {[%clk 0:02:50]}  d5 {[%clk 0:02:59]} 2. exd5 {[%clk 0:02:49]}  Qxd5 {[%clk 0:02:59]} 3. d4 {[%clk 0:02:48]}  Nc6 {[%clk 0:02:59]} 4. Nf3 {[%clk 0:02:47]}  Bg4 {[%clk 0:02:59]} 5. Be2 {[%clk 0:02:44]}  O-O-O {[%clk 0:02:59]} 6. Be3 {[%clk 0:02:43]}  e5 {[%clk 0:02:53]} 7. c4 {[%clk 0:02:40]}  Qa5+ {[%clk 0:02:52]} 8. Bd2 {[%clk 0:02:39]}  Bb4 {[%clk 0:02:52]} 9. d5 {[%clk 0:02:39]}  Bxf3 {[%clk 0:02:50]} 10. Bxf3 {[%clk 0:02:35]}  Nd4 {[%clk 0:02:50]} 11. Nc3 {[%clk 0:02:27]}  Qa6 {[%clk 0:02:33]} 12. Be2 {[%clk 0:02:21]}  Nf6 {[%clk 0:02:31]} 13. O-O {[%clk 0:02:09]}  Bxc3 {[%clk 0:02:29]} 14. Bxc3 {[%clk 0:02:08]}  Nxe2+ {[%clk 0:02:30]} 15. Qxe2 {[%clk 0:02:09]}  Rxd5 {[%clk 0:02:30]} 16. Rfe1 {[%clk 0:02:07]}  Rdd8 {[%clk 0:02:14]} 17. Qxe5 {[%clk 0:02:01]}  Qxc4 {[%clk 0:02:11]} 18. Qf5+ {[%clk 0:02:00]}  Kb8 {[%clk 0:02:08]} 19. Bxf6 {[%clk 0:01:57]}  gxf6 {[%clk 0:02:07]} 20. Qxf6 {[%clk 0:01:58]}  a6 {[%clk 0:01:59]} 21. g3 {[%clk 0:01:57]}  Rhe8 {[%clk 0:01:53]} 22. a3 {[%clk 0:01:33]}  Qb3 {[%clk 0:01:45]} 23. h4 {[%clk 0:01:30]}  h5 {[%clk 0:01:34]} 24. Re5 {[%clk 0:00:51]}  Ka7 {[%clk 0:00:41]} 25. Rxe8 {[%clk 0:00:48]}  Rxe8 {[%clk 0:00:39]} 26. Qd4+ {[%clk 0:00:49]}  Qb6 {[%clk 0:00:35]} 27. Rd1 {[%clk 0:00:49]}  Re2 {[%clk 0:00:33]} 28. Qxb6+ {[%clk 0:00:45]}  Kxb6 {[%clk 0:00:31]} 29. Rd5 {[%clk 0:00:45]}  Rxb2 {[%clk 0:00:29]} 30. Rxh5 {[%clk 0:00:46]}  c5 {[%clk 0:00:29]} 31. Re5 {[%clk 0:00:32]}  c4 {[%clk 0:00:28]} 32. Re3 {[%clk 0:00:31]}  Kc5 {[%clk 0:00:27]} 33. h5 {[%clk 0:00:31]}  Rb6 {[%clk 0:00:27]} 34. g4 {[%clk 0:00:26]}  Rh6 {[%clk 0:00:20]} 35. Kf1 {[%clk 0:00:25]}  b5 {[%clk 0:00:20]} 36. Re7 {[%clk 0:00:19]}  f6 {[%clk 0:00:18]} 37. Ra7 {[%clk 0:00:15]}  Kb6 {[%clk 0:00:17]} 38. Ra8 {[%clk 0:00:16]}  f5 {[%clk 0:00:16]} 39. f3 {[%clk 0:00:15]}  fxg4 {[%clk 0:00:16]} 40. fxg4 {[%clk 0:00:16]}  a5 {[%clk 0:00:17]} 41. Rb8+ {[%clk 0:00:14]}  Kc5 {[%clk 0:00:17]} 42. Ra8 {[%clk 0:00:15]}  a4 {[%clk 0:00:15]} 43. Rb8 {[%clk 0:00:13]}  c3 {[%clk 0:00:14]} 44. Ke2 {[%clk 0:00:13]}  Kc4 {[%clk 0:00:14]} 45. Kd1 {[%clk 0:00:11]}  Rd6+ {[%clk 0:00:13]} 46. Kc1 {[%clk 0:00:11]}  Rd4 {[%clk 0:00:12]} 47. h6 {[%clk 0:00:10]}  Rxg4 {[%clk 0:00:11]} 48. h7 {[%clk 0:00:10]}  Rg1+ {[%clk 0:00:11]} 49. Kc2 {[%clk 0:00:10]}  Rg2+ {[%clk 0:00:12]} 50. Kc1 {[%clk 0:00:06]}  Rg1+ {[%clk 0:00:12]} 51. Kc2 {[%clk 0:00:05]}  Rg2+ {[%clk 0:00:12]} 52. Kd1 {[%clk 0:00:06]}  Rd2+ {[%clk 0:00:07]} 53. Ke1 {[%clk 0:00:06]}  Rh2 {[%clk 0:00:07]} 54. h8=Q {[%clk 0:00:06]}  Rxh8 {[%clk 0:00:07]} 55. Rxh8 {[%clk 0:00:07]}  Kb3 {[%clk 0:00:07]} 56. Kd1 {[%clk 0:00:07]}  Kxa3 {[%clk 0:00:07]} 57. Kc2 {[%clk 0:00:07]}  b4 {[%clk 0:00:06]} 58. Ra8 {[%clk 0:00:07]}  b3+ {[%clk 0:00:03]} 59. Kxc3 {[%clk 0:00:08]}  b2 {[%clk 0:00:02]} 60. Kc2 {[%clk 0:00:08]} 1-0


[Site "https://www.chess.com"]

[Event "Titled Tuesday Blitz January 31 Late 2023"]
[White "Gonzalez, Francisco Silva"]
[Black "Womacka, Mathias"]
[WhiteFideId "1512285"]
[BlackFideId "4611390"]
[WhiteElo "2021"]
[BlackElo "2396"]
[Result "1/2-1/2"]
[Round "06"]
[TimeControl "180+2"]
[Date "2023.01.31"]
[WhiteClock "0:00:48"]
[BlackClock "0:00:17"]

1. d4 {[%clk 0:02:54]}  Nf6 {[%clk 0:02:58]} 2. c4 {[%clk 0:02:52]}  e6 {[%clk 0:02:53]} 3. Nc3 {[%clk 0:02:51]}  Bb4 {[%clk 0:02:53]} 4. a3 {[%clk 0:02:50]}  Bxc3+ {[%clk 0:02:52]} 5. bxc3 {[%clk 0:02:51]}  O-O {[%clk 0:02:52]} 6. e3 {[%clk 0:02:50]}  b6 {[%clk 0:02:48]} 7. Bd3 {[%clk 0:02:50]}  Ba6 {[%clk 0:02:48]} 8. e4 {[%clk 0:02:50]}  Ne8 {[%clk 0:02:46]} 9. Nf3 {[%clk 0:02:49]}  c5 {[%clk 0:02:43]} 10. e5 {[%clk 0:02:49]}  f6 {[%clk 0:02:39]} 11. Qc2 {[%clk 0:02:48]}  f5 {[%clk 0:02:37]} 12. Bg5 {[%clk 0:02:38]}  Qc7 {[%clk 0:02:35]} 13. d5 {[%clk 0:02:35]}  d6 {[%clk 0:02:28]} 14. dxe6 {[%clk 0:02:25]}  dxe5 {[%clk 0:02:27]} 15. Bxf5 {[%clk 0:02:25]}  Bxc4 {[%clk 0:02:22]} 16. Bxh7+ {[%clk 0:02:24]}  Kh8 {[%clk 0:02:22]} 17. e7 {[%clk 0:02:20]}  Rxf3 {[%clk 0:02:11]} 18. gxf3 {[%clk 0:02:17]}  Nc6 {[%clk 0:02:10]} 19. Be4 {[%clk 0:02:17]}  Rc8 {[%clk 0:02:05]} 20. Rg1 {[%clk 0:02:15]}  Nxe7 {[%clk 0:02:04]} 21. Rg3 {[%clk 0:02:15]}  Nd6 {[%clk 0:01:56]} 22. Rh3+ {[%clk 0:02:12]}  Kg8 {[%clk 0:01:56]} 23. Rd1 {[%clk 0:02:08]}  Be6 {[%clk 0:01:42]} 24. Bh7+ {[%clk 0:01:54]}  Kf8 {[%clk 0:01:39]} 25. Rh5 {[%clk 0:01:21]}  Nf7 {[%clk 0:01:26]} 26. Bg6 {[%clk 0:01:10]}  Nxg5 {[%clk 0:01:05]} 27. Rxg5 {[%clk 0:01:09]}  Qc6 {[%clk 0:00:56]} 28. Qe4 {[%clk 0:01:06]}  Qxe4+ {[%clk 0:00:46]} 29. fxe4 {[%clk 0:01:06]}  b5 {[%clk 0:00:47]} 30. Bf5 {[%clk 0:01:04]}  Nxf5 {[%clk 0:00:44]} 31. exf5 {[%clk 0:01:03]}  Bf7 {[%clk 0:00:45]} 32. Rd7 {[%clk 0:01:01]}  a5 {[%clk 0:00:42]} 33. Rb7 {[%clk 0:01:00]}  b4 {[%clk 0:00:35]} 34. axb4 {[%clk 0:01:00]}  axb4 {[%clk 0:00:34]} 35. cxb4 {[%clk 0:00:59]}  c4 {[%clk 0:00:34]} 36. Ra7 {[%clk 0:00:59]}  c3 {[%clk 0:00:34]} 37. Rxf7+ {[%clk 0:00:56]}  Kxf7 {[%clk 0:00:33]} 38. Kd1 {[%clk 0:00:56]}  Rc4 {[%clk 0:00:21]} 39. Kc2 {[%clk 0:00:56]}  Rxb4 {[%clk 0:00:21]} 40. Kxc3 {[%clk 0:00:57]}  Rf4 {[%clk 0:00:21]} 41. Kd3 {[%clk 0:00:51]}  Rxf2 {[%clk 0:00:21]} 42. Ke4 {[%clk 0:00:51]}  Rxh2 {[%clk 0:00:20]} 43. Kxe5 {[%clk 0:00:49]}  Re2+ {[%clk 0:00:19]} 44. Kf4 {[%clk 0:00:48]}  Rf2+ {[%clk 0:00:18]} 45. Ke5 {[%clk 0:00:48]}  Re2+ {[%clk 0:00:18]} 46. Kf4 {[%clk 0:00:48]}  Rf2+ {[%clk 0:00:17]} 47. Ke5 {[%clk 0:00:48]}  Re2+ {[%clk 0:00:17]} 1/2-1/2


[Site "https://www.chess.com"]

[Event "Titled Tuesday Blitz January 31 Late 2023"]
[White "TheKnightOfBosnia"]
[Black "Vasques, Antonio Pedro Freixial"]
[BlackFideId "1908332"]
[WhiteElo "2502"]
[BlackElo "2214"]
[Result "0-1"]
[Round "06"]
[TimeControl "180+2"]
[Date "2023.01.31"]
[WhiteClock "0:00:03"]
[BlackClock "0:00:25"]

1. e4 {[%clk 0:03:00]}  c5 {[%clk 0:02:59]} 2. Nf3 {[%clk 0:03:01]}  Nc6 {[%clk 0:02:59]} 3. d4 {[%clk 0:03:01]}  cxd4 {[%clk 0:02:59]} 4. Nxd4 {[%clk 0:03:02]}  Nf6 {[%clk 0:03:00]} 5. Nc3 {[%clk 0:03:02]}  d6 {[%clk 0:03:00]} 6. Bg5 {[%clk 0:03:00]}  e6 {[%clk 0:03:00]} 7. Qd2 {[%clk 0:02:56]}  a6 {[%clk 0:02:58]} 8. O-O-O {[%clk 0:02:54]}  Bd7 {[%clk 0:02:57]} 9. f4 {[%clk 0:02:54]}  Be7 {[%clk 0:02:52]} 10. g4 {[%clk 0:02:26]}  h6 {[%clk 0:02:30]} 11. Bxf6 {[%clk 0:02:19]}  Bxf6 {[%clk 0:02:21]} 12. Nf3 {[%clk 0:02:10]}  Be7 {[%clk 0:02:09]} 13. h4 {[%clk 0:02:09]}  b5 {[%clk 0:02:06]} 14. Bd3 {[%clk 0:02:06]}  Qa5 {[%clk 0:02:03]} 15. Kb1 {[%clk 0:02:00]}  b4 {[%clk 0:01:46]} 16. Ne2 {[%clk 0:01:59]}  Rb8 {[%clk 0:01:39]} 17. g5 {[%clk 0:01:57]}  Qc5 {[%clk 0:01:15]} 18. g6 {[%clk 0:01:53]}  f5 {[%clk 0:01:03]} 19. exf5 {[%clk 0:01:50]}  exf5 {[%clk 0:01:04]} 20. Ng3 {[%clk 0:01:27]}  O-O {[%clk 0:01:02]} 21. Ng5 {[%clk 0:01:19]}  a5 {[%clk 0:00:53]} 22. Nf7 {[%clk 0:01:17]}  a4 {[%clk 0:00:49]} 23. Nh5 {[%clk 0:01:08]}  Be6 {[%clk 0:00:40]} 24. Rde1 {[%clk 0:01:00]}  Bxf7 {[%clk 0:00:39]} 25. gxf7+ {[%clk 0:01:00]}  Rxf7 {[%clk 0:00:40]} 26. Rhg1 {[%clk 0:00:55]}  Bxh4 {[%clk 0:00:40]} 27. Rd1 {[%clk 0:00:49]}  b3 {[%clk 0:00:39]} 28. cxb3 {[%clk 0:00:44]}  axb3 {[%clk 0:00:39]} 29. axb3 {[%clk 0:00:38]}  Nb4 {[%clk 0:00:39]} 30. Bc4 {[%clk 0:00:34]}  d5 {[%clk 0:00:39]} 31. Bxd5 {[%clk 0:00:33]}  Nxd5 {[%clk 0:00:39]} 32. Qxd5 {[%clk 0:00:33]}  Qxd5 {[%clk 0:00:40]} 33. Rxd5 {[%clk 0:00:33]}  Rxb3 {[%clk 0:00:40]} 34. Kc2 {[%clk 0:00:16]}  Rf3 {[%clk 0:00:37]} 35. b4 {[%clk 0:00:15]}  Kh7 {[%clk 0:00:37]} 36. Rd6 {[%clk 0:00:13]}  Be7 {[%clk 0:00:32]} 37. Rdg6 {[%clk 0:00:13]}  Bf8 {[%clk 0:00:27]} 38. b5 {[%clk 0:00:10]}  Rh3 {[%clk 0:00:27]} 39. Nxg7 {[%clk 0:00:03]}  Rxg7 {[%clk 0:00:24]} 40. Rxg7+ {[%clk 0:00:03]}  Bxg7 {[%clk 0:00:25]} 41. b6 {[%clk 0:00:03]}  Rc3+ {[%clk 0:00:25]} 0-1


[Site "https://www.chess.com"]

[Event "Titled Tuesday Blitz January 31 Late 2023"]
[White "Veiga, Jose Francisco R P Neves"]
[Black "Dzida, Kamil"]
[WhiteFideId "1930087"]
[BlackFideId "21828652"]
[WhiteElo "2406"]
[BlackElo "2352"]
[Result "1-0"]
[Round "06"]
[TimeControl "180+2"]
[Date "2023.01.31"]
[WhiteClock "0:01:12"]
[BlackClock "0:00:13"]

1. e4 {[%clk 0:03:00]}  c5 {[%clk 0:02:58]} 2. Nf3 {[%clk 0:02:59]}  d6 {[%clk 0:02:55]} 3. d3 {[%clk 0:02:55]}  Nf6 {[%clk 0:02:45]} 4. g3 {[%clk 0:02:56]}  g6 {[%clk 0:02:43]} 5. Bg2 {[%clk 0:02:57]}  Bg7 {[%clk 0:02:44]} 6. O-O {[%clk 0:02:57]}  O-O {[%clk 0:02:44]} 7. Re1 {[%clk 0:02:56]}  Nc6 {[%clk 0:02:44]} 8. Nbd2 {[%clk 0:02:51]}  d5 {[%clk 0:02:37]} 9. exd5 {[%clk 0:02:51]}  Nxd5 {[%clk 0:02:37]} 10. Ne4 {[%clk 0:02:51]}  b6 {[%clk 0:02:37]} 11. a4 {[%clk 0:02:49]}  Ndb4 {[%clk 0:02:34]} 12. Nfd2 {[%clk 0:02:41]}  Bb7 {[%clk 0:02:25]} 13. Nc4 {[%clk 0:02:41]}  Qd7 {[%clk 0:02:15]} 14. a5 {[%clk 0:02:30]}  Ba6 {[%clk 0:01:54]} 15. axb6 {[%clk 0:02:00]}  Bxc4 {[%clk 0:01:54]} 16. dxc4 {[%clk 0:02:00]}  Qxd1 {[%clk 0:01:52]} 17. Rxd1 {[%clk 0:02:01]}  Nxc2 {[%clk 0:01:41]} 18. b7 {[%clk 0:02:01]}  Rab8 {[%clk 0:01:38]} 19. Nxc5 {[%clk 0:01:53]}  Nxa1 {[%clk 0:01:35]} 20. Bxc6 {[%clk 0:01:53]}  Nc2 {[%clk 0:01:11]} 21. Nd7 {[%clk 0:01:52]}  Nd4 {[%clk 0:01:11]} 22. Bd5 {[%clk 0:01:20]}  Ne2+ {[%clk 0:00:21]} 23. Kf1 {[%clk 0:01:16]}  Nxc1 {[%clk 0:00:22]} 24. Rxc1 {[%clk 0:01:14]}  Bxb2 {[%clk 0:00:22]} 25. Rc2 {[%clk 0:01:11]}  Bf6 {[%clk 0:00:18]} 26. c5 {[%clk 0:01:11]}  Rfd8 {[%clk 0:00:15]} 27. c6 {[%clk 0:01:11]}  Rxd7 {[%clk 0:00:13]} 28. cxd7 {[%clk 0:01:12]} 1-0


[Site "https://www.chess.com"]

[Event "Titled Tuesday Blitz January 31 Late 2023"]
[White "ArchibaldCerveza29"]
[Black "Pesotskiy, Mikhail"]
[BlackFideId "34164453"]
[WhiteElo "2532"]
[BlackElo "2153"]
[Result "1-0"]
[Round "06"]
[TimeControl "180+2"]
[Date "2023.01.31"]
[WhiteClock "0:00:16"]
[BlackClock "0:00:04"]

1. e4 {[%clk 0:03:00]}  e6 {[%clk 0:03:00]} 2. d4 {[%clk 0:03:00]}  d5 {[%clk 0:03:01]} 3. Nd2 {[%clk 0:03:01]}  Nf6 {[%clk 0:03:01]} 4. Bd3 {[%clk 0:03:00]}  c5 {[%clk 0:03:01]} 5. c3 {[%clk 0:03:00]}  Nc6 {[%clk 0:03:01]} 6. Ngf3 {[%clk 0:02:59]}  cxd4 {[%clk 0:02:50]} 7. cxd4 {[%clk 0:02:59]}  dxe4 {[%clk 0:02:50]} 8. Nxe4 {[%clk 0:02:59]}  Bb4+ {[%clk 0:02:36]} 9. Nc3 {[%clk 0:02:59]}  O-O {[%clk 0:02:34]} 10. O-O {[%clk 0:02:59]}  b6 {[%clk 0:02:35]} 11. Re1 {[%clk 0:02:58]}  Bb7 {[%clk 0:02:34]} 12. a3 {[%clk 0:02:59]}  Be7 {[%clk 0:02:34]} 13. Bc2 {[%clk 0:02:59]}  Nd5 {[%clk 0:02:17]} 14. Qd3 {[%clk 0:02:58]}  g6 {[%clk 0:02:18]} 15. Bh6 {[%clk 0:02:47]}  Re8 {[%clk 0:02:17]} 16. Bb3 {[%clk 0:02:45]}  Na5 {[%clk 0:02:15]} 17. Ba2 {[%clk 0:02:43]}  Rc8 {[%clk 0:02:11]} 18. Ne5 {[%clk 0:02:41]}  Bf6 {[%clk 0:02:05]} 19. Rad1 {[%clk 0:02:32]}  Nxc3 {[%clk 0:01:31]} 20. bxc3 {[%clk 0:02:33]}  Bd5 {[%clk 0:01:32]} 21. Bb1 {[%clk 0:02:25]}  Nc4 {[%clk 0:01:23]} 22. Ng4 {[%clk 0:02:16]}  Bh8 {[%clk 0:01:21]} 23. Qg3 {[%clk 0:02:04]}  Nxa3 {[%clk 0:01:17]} 24. Bd3 {[%clk 0:02:03]}  Rxc3 {[%clk 0:01:11]} 25. Ne5 {[%clk 0:02:01]}  Qc7 {[%clk 0:00:58]} 26. Bf4 {[%clk 0:01:58]}  Qb7 {[%clk 0:00:52]} 27. h4 {[%clk 0:01:55]}  Nc4 {[%clk 0:00:49]} 28. Ng4 {[%clk 0:01:47]}  Nb2 {[%clk 0:00:46]} 29. h5 {[%clk 0:01:38]}  Rxd3 {[%clk 0:00:33]} 30. Rxd3 {[%clk 0:01:36]}  Nxd3 {[%clk 0:00:34]} 31. Qxd3 {[%clk 0:01:37]}  Bg7 {[%clk 0:00:22]} 32. h6 {[%clk 0:01:35]}  Bh8 {[%clk 0:00:22]} 33. Be5 {[%clk 0:01:34]}  Qe7 {[%clk 0:00:15]} 34. Qg3 {[%clk 0:01:29]}  f6 {[%clk 0:00:15]} 35. Bf4 {[%clk 0:01:18]}  Qd7 {[%clk 0:00:16]} 36. Qh4 {[%clk 0:01:17]}  Kf7 {[%clk 0:00:16]} 37. Rc1 {[%clk 0:01:12]}  Rc8 {[%clk 0:00:16]} 38. Re1 {[%clk 0:01:08]}  a5 {[%clk 0:00:16]} 39. Ne3 {[%clk 0:01:04]}  a4 {[%clk 0:00:15]} 40. g4 {[%clk 0:01:02]}  a3 {[%clk 0:00:15]} 41. g5 {[%clk 0:01:02]}  f5 {[%clk 0:00:15]} 42. Be5 {[%clk 0:00:49]}  Bxe5 {[%clk 0:00:14]} 43. dxe5 {[%clk 0:00:50]}  a2 {[%clk 0:00:15]} 44. Qd4 {[%clk 0:00:48]}  Ra8 {[%clk 0:00:14]} 45. Ra1 {[%clk 0:00:45]}  Ra6 {[%clk 0:00:07]} 46. Qf4 {[%clk 0:00:38]}  Qb5 {[%clk 0:00:05]} 47. Qd4 {[%clk 0:00:30]}  Qb1+ {[%clk 0:00:04]} 48. Kh2 {[%clk 0:00:30]}  Qb5 {[%clk 0:00:02]} 49. Qc3 {[%clk 0:00:19]}  Qc5 {[%clk 0:00:03]} 50. Qd2 {[%clk 0:00:19]}  Ra3 {[%clk 0:00:03]} 51. Rc1 {[%clk 0:00:15]}  Qxc1 {[%clk 0:00:02]} 52. Qxc1 {[%clk 0:00:16]}  a1=Q {[%clk 0:00:02]} 53. Qc7+ {[%clk 0:00:17]}  Ke8 {[%clk 0:00:03]} 54. Nxd5 {[%clk 0:00:16]}  Qxe5+ {[%clk 0:00:03]} 55. Qxe5 {[%clk 0:00:16]}  Kd7 {[%clk 0:00:03]} 56. Qc7+ {[%clk 0:00:15]}  Ke8 {[%clk 0:00:04]} 57. Qe7# {[%clk 0:00:16]} 1-0


[Site "https://www.chess.com"]

[Event "Titled Tuesday Blitz January 31 Late 2023"]
[White "Yedidia, Daniel"]
[Black "Kujawski, Adam"]
[WhiteFideId "30905907"]
[BlackFideId "1100920"]
[WhiteElo "2041"]
[BlackElo "2173"]
[Result "0-1"]
[Round "06"]
[TimeControl "180+2"]
[Date "2023.01.31"]
[WhiteClock "0:00:57"]
[BlackClock "0:00:05"]

1. d4 {[%clk 0:03:00]}  Nf6 {[%clk 0:02:55]} 2. c4 {[%clk 0:03:00]}  e6 {[%clk 0:02:55]} 3. Nc3 {[%clk 0:02:59]}  Bb4 {[%clk 0:02:55]} 4. e3 {[%clk 0:02:58]}  c5 {[%clk 0:02:55]} 5. Ne2 {[%clk 0:02:58]}  b6 {[%clk 0:02:54]} 6. a3 {[%clk 0:02:57]}  Ba5 {[%clk 0:02:54]} 7. Rb1 {[%clk 0:02:58]}  Na6 {[%clk 0:02:52]} 8. Qc2 {[%clk 0:02:57]}  O-O {[%clk 0:02:33]} 9. Bd2 {[%clk 0:02:53]}  Bb7 {[%clk 0:02:25]} 10. Ng3 {[%clk 0:02:31]}  d5 {[%clk 0:02:05]} 11. cxd5 {[%clk 0:02:30]}  cxd4 {[%clk 0:01:49]} 12. exd4 {[%clk 0:02:28]}  Bxc3 {[%clk 0:01:05]} 13. bxc3 {[%clk 0:02:24]}  Qxd5 {[%clk 0:00:54]} 14. f3 {[%clk 0:02:22]}  Rac8 {[%clk 0:00:52]} 15. Bd3 {[%clk 0:02:18]}  Rfd8 {[%clk 0:00:49]} 16. O-O {[%clk 0:02:15]}  Nc5 {[%clk 0:00:42]} 17. Be2 {[%clk 0:02:03]}  Ba6 {[%clk 0:00:33]} 18. Bg5 {[%clk 0:01:54]}  Bxe2 {[%clk 0:00:23]} 19. Qxe2 {[%clk 0:01:54]}  Qxg5 {[%clk 0:00:23]} 20. dxc5 {[%clk 0:01:53]}  Rxc5 {[%clk 0:00:21]} 21. Rfd1 {[%clk 0:01:48]}  Rdc8 {[%clk 0:00:20]} 22. Qd3 {[%clk 0:01:37]}  h5 {[%clk 0:00:19]} 23. Ne2 {[%clk 0:01:33]}  Nd5 {[%clk 0:00:18]} 24. g3 {[%clk 0:01:14]}  Nxc3 {[%clk 0:00:17]} 25. Nxc3 {[%clk 0:01:09]}  Rxc3 {[%clk 0:00:17]} 26. Qe4 {[%clk 0:01:07]}  Qe3+ {[%clk 0:00:16]} 27. Qxe3 {[%clk 0:01:07]}  Rxe3 {[%clk 0:00:17]} 28. Kf2 {[%clk 0:01:07]}  Rxa3 {[%clk 0:00:17]} 29. Rb2 {[%clk 0:01:06]}  Rb8 {[%clk 0:00:15]} 30. Rd7 {[%clk 0:01:06]}  b5 {[%clk 0:00:15]} 31. Rc2 {[%clk 0:01:06]}  b4 {[%clk 0:00:15]} 32. Rcc7 {[%clk 0:01:07]}  Rf8 {[%clk 0:00:15]} 33. Rb7 {[%clk 0:01:05]}  a5 {[%clk 0:00:15]} 34. g4 {[%clk 0:01:00]}  hxg4 {[%clk 0:00:15]} 35. fxg4 {[%clk 0:01:01]}  b3 {[%clk 0:00:15]} 36. g5 {[%clk 0:01:02]}  g6 {[%clk 0:00:12]} 37. h4 {[%clk 0:01:01]}  Ra2+ {[%clk 0:00:08]} 38. Kg3 {[%clk 0:01:00]}  a4 {[%clk 0:00:08]} 39. h5 {[%clk 0:01:00]}  gxh5 {[%clk 0:00:08]} 40. g6 {[%clk 0:01:01]}  Ra1 {[%clk 0:00:06]} 41. Kh4 {[%clk 0:00:58]}  Rh1+ {[%clk 0:00:05]} 42. Kg5 {[%clk 0:00:58]}  Rg1+ {[%clk 0:00:05]} 43. Kxh5 {[%clk 0:00:59]}  Rxg6 {[%clk 0:00:05]} 44. Rd4 {[%clk 0:00:57]}  Kg7 {[%clk 0:00:05]} 0-1


[Site "https://www.chess.com"]

[Event "Titled Tuesday Blitz January 31 Late 2023"]
[White "Rian, Kapriaga"]
[Black "Graif, William"]
[WhiteFideId "7103263"]
[BlackFideId "2609835"]
[WhiteElo "2089"]
[BlackElo "2304"]
[Result "0-1"]
[Round "06"]
[TimeControl "180+2"]
[Date "2023.01.31"]
[WhiteClock "0:00:01"]
[BlackClock "0:00:05"]

1. d4 {[%clk 0:01:58]}  Nf6 {[%clk 0:02:58]} 2. Nf3 {[%clk 0:01:58]}  d5 {[%clk 0:02:56]} 3. Bf4 {[%clk 0:01:57]}  c5 {[%clk 0:02:52]} 4. e3 {[%clk 0:01:57]}  Nc6 {[%clk 0:02:50]} 5. Nbd2 {[%clk 0:01:55]}  cxd4 {[%clk 0:02:48]} 6. exd4 {[%clk 0:01:55]}  a6 {[%clk 0:02:37]} 7. a4 {[%clk 0:01:53]}  Bf5 {[%clk 0:02:26]} 8. c3 {[%clk 0:01:50]}  e6 {[%clk 0:02:10]} 9. Be2 {[%clk 0:01:48]}  Bd6 {[%clk 0:02:07]} 10. Bg3 {[%clk 0:01:44]}  O-O {[%clk 0:02:05]} 11. O-O {[%clk 0:01:43]}  h6 {[%clk 0:01:54]} 12. Re1 {[%clk 0:01:40]}  Ne4 {[%clk 0:01:41]} 13. Nxe4 {[%clk 0:01:36]}  Bxe4 {[%clk 0:01:38]} 14. Nd2 {[%clk 0:01:35]}  Bg6 {[%clk 0:01:33]} 15. Nb3 {[%clk 0:01:26]}  Bxg3 {[%clk 0:01:19]} 16. hxg3 {[%clk 0:01:25]}  a5 {[%clk 0:00:49]} 17. Bb5 {[%clk 0:01:20]}  Ne7 {[%clk 0:00:45]} 18. Nc5 {[%clk 0:01:15]}  Qc7 {[%clk 0:00:32]} 19. Nd7 {[%clk 0:01:01]}  Rfd8 {[%clk 0:00:32]} 20. Ne5 {[%clk 0:01:00]}  Bh7 {[%clk 0:00:32]} 21. Qf3 {[%clk 0:00:56]}  Ng6 {[%clk 0:00:31]} 22. Nd3 {[%clk 0:00:34]}  b6 {[%clk 0:00:31]} 23. Re2 {[%clk 0:00:27]}  Nf8 {[%clk 0:00:30]} 24. Ne5 {[%clk 0:00:26]}  Ng6 {[%clk 0:00:29]} 25. Nc6 {[%clk 0:00:22]}  Rd6 {[%clk 0:00:27]} 26. Ne5 {[%clk 0:00:20]}  Nxe5 {[%clk 0:00:27]} 27. Rxe5 {[%clk 0:00:19]}  Be4 {[%clk 0:00:26]} 28. Qe2 {[%clk 0:00:17]}  Rf8 {[%clk 0:00:19]} 29. f3 {[%clk 0:00:16]}  Bg6 {[%clk 0:00:16]} 30. Bd3 {[%clk 0:00:14]}  Bxd3 {[%clk 0:00:15]} 31. Qxd3 {[%clk 0:00:14]}  Rd7 {[%clk 0:00:13]} 32. Qb5 {[%clk 0:00:14]}  Re7 {[%clk 0:00:12]} 33. Kh2 {[%clk 0:00:13]}  Qd6 {[%clk 0:00:12]} 34. Rae1 {[%clk 0:00:12]}  g6 {[%clk 0:00:11]} 35. Kh3 {[%clk 0:00:11]}  Kg7 {[%clk 0:00:11]} 36. Kh2 {[%clk 0:00:11]}  h5 {[%clk 0:00:11]} 37. Kh3 {[%clk 0:00:10]}  f6 {[%clk 0:00:11]} 38. R5e2 {[%clk 0:00:08]}  Rh8 {[%clk 0:00:11]} 39. Qd3 {[%clk 0:00:06]}  g5 {[%clk 0:00:10]} 40. Qe3 {[%clk 0:00:02]}  h4 {[%clk 0:00:09]} 41. f4 {[%clk 0:00:01]}  hxg3+ {[%clk 0:00:09]} 42. Kxg3 {[%clk 0:00:01]}  Kf7 {[%clk 0:00:07]} 43. Kf3 {[%clk 0:00:01]}  gxf4 {[%clk 0:00:07]} 44. Qxf4 {[%clk 0:00:01]}  Qxf4+ {[%clk 0:00:08]} 45. Kxf4 {[%clk 0:00:02]}  Rg8 {[%clk 0:00:09]} 46. Kf3 {[%clk 0:00:02]}  Rg6 {[%clk 0:00:08]} 47. g3 {[%clk 0:00:02]}  Re8 {[%clk 0:00:09]} 48. Rh2 {[%clk 0:00:01]}  Reg8 {[%clk 0:00:08]} 49. Rh3 {[%clk 0:00:02]}  Rg5 {[%clk 0:00:08]} 50. Reh1 {[%clk 0:00:02]}  R8g7 {[%clk 0:00:07]} 51. Rh7 {[%clk 0:00:02]}  e5 {[%clk 0:00:07]} 52. Rxg7+ {[%clk 0:00:02]}  Kxg7 {[%clk 0:00:08]} 53. dxe5 {[%clk 0:00:02]}  fxe5 {[%clk 0:00:09]} 54. g4 {[%clk 0:00:02]}  Kf6 {[%clk 0:00:09]} 55. Rh6+ {[%clk 0:00:02]}  Rg6 {[%clk 0:00:08]} 56. Rh7 {[%clk 0:00:02]}  Kg5 {[%clk 0:00:07]} 57. Rh4 {[%clk 0:00:02]}  e4+ {[%clk 0:00:07]} 58. Kg3 {[%clk 0:00:02]}  Rd6 {[%clk 0:00:06]} 59. Rh5+ {[%clk 0:00:03]}  Kg6 {[%clk 0:00:06]} 60. Kf4 {[%clk 0:00:03]}  Rf6+ {[%clk 0:00:06]} 61. Ke5 {[%clk 0:00:03]}  e3 {[%clk 0:00:05]} 62. Rh3 {[%clk 0:00:04]}  e2 {[%clk 0:00:05]} 63. Re3 {[%clk 0:00:04]}  Rf2 {[%clk 0:00:04]} 64. Kxd5 {[%clk 0:00:04]}  Kg5 {[%clk 0:00:05]} 65. Kd4 {[%clk 0:00:03]}  Kxg4 {[%clk 0:00:04]} 66. Kd3 {[%clk 0:00:03]}  e1=Q {[%clk 0:00:04]} 67. Rxe1 {[%clk 0:00:04]}  Rxb2 {[%clk 0:00:05]} 68. Re6 {[%clk 0:00:03]}  Kf5 {[%clk 0:00:04]} 69. Re8 {[%clk 0:00:02]}  Ra2 {[%clk 0:00:04]} 70. Rb8 {[%clk 0:00:01]}  Rxa4 {[%clk 0:00:04]} 71. Rxb6 {[%clk 0:00:01]}  Ke5 {[%clk 0:00:05]} 0-1


[Site "https://www.chess.com"]